Workbook

Sheet Kellogg valuation template
A1: KELLOGG CASH FLOW VALUATION TEMPLATE
A2: Current free cash flow (FCF)
A3: Growth rate of FCF, years 1-5
A4: Long-term FCF growth rate
A5: Weighted average cost of capital, WACC
A7: Year | B7: End 2011 | C7: 2012 | D7: 2013 | E7: 2014 | F7: 2015 | G7: 2016
A8: FCF
A9: Terminal value
A10: Total (sum of FCF+terminal)
A12: Enterprise value
A13: Add back initial cash
A14: Subtract out debt
A15: Equity value
A16: Number of shares outstanding
A17: Share value from our model
A18: Actual stock price (30 Dec 2011)
A20: ="Data table: Model share price as function of LT growth and WACC"&", short-term FCF growth rate = "&TEXT(B3,"0%")&CHAR(10)&"Highlighted: model prices within 20% of actual market price of "&TEXT(B18,"$0.00") -> Data table: Model share price as function of LT growth and WACC, short-term FCF growth rate = 0% Highlighted: model prices within 20% of actual market price of $0.00
C21: Long-term growth rate ↓
A22: =gggetformula(B22) -> =IF(B5>B4,B17,"nmf") --> | B22: =IF(B5>B4,B17,"nmf") -> nmf | C22: -0.1 | D22: -0.08 | E22: -0.06 | F22: -0.03 | G22: 0
B23: 0.025 | C23: 0 | D23: 0 | E23: 0 | F23: 0 | G23: 0
B24: 0.03 | C24: 0 | D24: 0 | E24: 0 | F24: 0 | G24: 0
B25: 0.035 | C25: 0 | D25: 0 | E25: 0 | F25: 0 | G25: 0
A26: WACC --> | B26: 0.04 | C26: 0 | D26: 0 | E26: 0 | F26: 0 | G26: 0
B27: 0.045 | C27: 0 | D27: 0 | E27: 0 | F27: 0 | G27: 0
B28: 0.05 | C28: 0 | D28: 0 | E28: 0 | F28: 0 | G28: 0
B29: 0.055 | C29: 0 | D29: 0 | E29: 0 | F29: 0 | G29: 0
B30: 0.06 | C30: 0 | D30: 0 | E30: 0 | F30: 0 | G30: 0
B31: 0.065 | C31: 0 | D31: 0 | E31: 0 | F31: 0 | G31: 0
B32: 0.07 | C32: 0 | D32: 0 | E32: 0 | F32: 0 | G32: 0
B33: 0.075 | C33: 0 | D33: 0 | E33: 0 | F33: 0 | G33: 0
B34: 0.08 | C34: 0 | D34: 0 | E34: 0 | F34: 0 | G34: 0
B35: 0.085 | C35: 0 | D35: 0 | E35: 0 | F35: 0 | G35: 0

Sheet Kellogg income statement
A1: Kellogg Company and Subsidiaries
A2: INCOME STATEMENT (millions except share data)
B4: 2011 | C4: 2010 | D4: 2009
A5: Net sales | B5: 13198 | C5: 12397 | D5: 12575
A6: Cost of goods sold | B6: 7750 | C6: 7108 | D6: 7184
A7: Selling, general and administrative expense | B7: 3472 | C7: 3299 | D7: 3390
A8: Operating profit | B8: 1976 | C8: 1990 | D8: 2001
A9: Interest expense | B9: 233 | C9: 248 | D9: 295
A10: Other income (expense), net | B10: -11 | C10: — | D10: -22
A11: Income before income taxes | B11: 1732 | C11: 1742 | D11: 1684
A12: Income taxes | B12: 503 | C12: 502 | D12: 476
A13: Net income | B13: 1229 | C13: 1240 | D13: 1208
A14: Net loss attributable to noncontrolling interests | B14: -2 | C14: -7 | D14: -4
A15: Net income attributable to Kellogg Company | B15: 1231 | C15: 1247 | D15: 1212
A17: Per share amounts:
A18: Basic | B18: 3.4 | C18: 3.32 | D18: 3.17
A19: Diluted | B19: 3.38 | C19: 3.3 | D19: 3.16
A20: Dividends per share | B20: 1.67 | C20: 1.56 | D20: 1.43

Sheet Kellogg balance sheet
A1: Kellogg Company and Subsidiaries
A2: CONSOLIDATED BALANCE SHEET (millions except share data)
B3: 2011 | C3: 2010
A4: Current assets
A5: Cash and cash equivalents | B5: 460 | C5: 444
A6: Accounts receivable, net | B6: 1188 | C6: 1190
A7: Inventories | B7: 1132 | C7: 1056
A8: Other current assets | B8: 247 | C8: 225
A9: Total current assets | B9: 3027 | C9: 2915
A10: Property, net | B10: 3281 | C10: 3128
A11: Goodwill | B11: 3623 | C11: 3628
A12: Other intangibles, net | B12: 1454 | C12: 1456
A13: Other assets | B13: 516 | C13: 720
A14: Total assets | B14: 11901 | C14: 11847
A16: Current liabilities
A17: Current maturities of long-term debt | B17: 761 | C17: 952
A18: Notes payable | B18: 234 | C18: 44
A19: Accounts payable | B19: 1189 | C19: 1149
A20: Other current liabilities | B20: 1129 | C20: 1039
A21: Total current liabilities | B21: 3313 | C21: 3184
A22: Long-term debt | B22: 5037 | C22: 4908
A23: Deferred income taxes | B23: 637 | C23: 697
A24: Pension liability | B24: 560 | C24: 265
A25: Other liabilities | B25: 592 | C25: 639
A26: Commitments and contingencies
A27: Equity
A28: Common stock, $.25 par value, 1,000,000,000 shares authorized
A29: Issued: 419,484,087 shares in 2011 and 419,272,027 shares in 2010 | B29: 105 | C29: 105
A30: Capital in excess of par value | B30: 522 | C30: 495
A31: Retained earnings | B31: 6721 | C31: 6122
A32: Treasury stock at cost
A33: 62,182,500 shares in 2011 and 53,667,635 shares in 2010 | B33: -3130 | C33: -2650
A34: Accumulated other comprehensive income (loss) | B34: -2458 | C34: -1914
A35: Total Kellogg Company equity | B35: 1760 | C35: 2158
A36: Noncontrolling interests | B36: 2 | C36: -4
A37: Total equity | B37: 1762 | C37: 2154
A38: Total liabilities and equity | B38: 11901 | C38: 11847
A41: Net shares outstanding | B41: =419484087-62182500 -> 357301587 | C41: =419272027-53667635 -> 365604392 | D41: =getformula(C41) -> <-- =419272027-53667635

Sheet Kellogg CSCF
A1: Kellogg Company and Subsidiaries
A2: CONSOLIDATED STATEMENT OF CASH FLOWS (millions)
A4: Operating activities | B4: 2011 | C4: 2010 | D4: 2009
A5: Net income | B5: 1229 | C5: 1240 | D5: 1208
A6: Adjustments to reconcile net income to operating cash flows:
A7: Depreciation and amortization | B7: 369 | C7: 392 | D7: 384
A8: Deferred income taxes | B8: 84 | C8: 266 | D8: -40
A9: Other | B9: -22 | C9: 97 | D9: 13
A10: Postretirement benefit plan contributions | B10: -192 | C10: -643 | D10: -100
A11: Changes in operating assets and liabilities:
A12: Trade receivables | B12: -100 | C12: 59 | D12: -75
A13: Inventories | B13: -76 | C13: -146 | D13: -13
A14: Accounts payable | B14: 40 | C14: 72 | D14: -59
A15: Accrued income taxes | B15: 132 | C15: -192 | D15: 112
A16: Accrued interest expense | B16: -7 | C16: 9 | D16: -5
A17: Accrued and prepaid advertising, promotion and trade allowances | B17: 4 | C17: -12 | D17: 91
A18: Accrued salaries and wages | B18: 89 | C18: -169 | D18: 42
A19: All other current assets and liabilities | B19: 45 | C19: 35 | D19: 85
A20: Net cash provided by operating activities | B20: =SUM(B5:B19) -> 1595 | C20: =SUM(C5:C19) -> 1008 | D20: =SUM(D5:D19) -> 1643
A22: Investing activities | B22: 2011 | C22: 2010 | D22: 2009
A23: Additions to properties | B23: -594 | C23: -474 | D23: -377
A24: Other | B24: 7 | C24: 9 | D24: 7
A25: Net cash used in investing activities | B25: =SUM(B23:B24) -> -587 | C25: =SUM(C23:C24) -> -465 | D25: =SUM(D23:D24) -> -370 | E25: =getformula(D25) -> <-- =SUM(D23:D24)
A27: Financing activities | B27: 2011 | C27: 2010 | D27: 2009
A28: Net increase (reduction) of notes payable, with maturities less than or equal to 90 days | B28: 189 | C28: -1 | D28: -1284
A29: Issuances of notes payable, with maturities greater than 90 days | B29: — | C29: — | D29: 10
A30: Reductions of notes payable, with maturities greater than 90 days | B30: — | C30: — | D30: -70
A31: Issuances of long-term debt | B31: 895 | C31: 987 | D31: 1241
A32: Reductions of long-term debt | B32: -945 | C32: -1 | D32: -482
A33: Net issuances of common stock | B33: 291 | C33: 204 | D33: 131
A34: Common stock repurchases | B34: -798 | C34: -1052 | D34: -187
A35: Cash dividends | B35: -604 | C35: -584 | D35: -546
A36: Other | B36: 15 | C36: 8 | D36: 5
A37: Net cash used in financing activities | B37: =SUM(B28:B36) -> -957 | C37: =SUM(C28:C36) -> -439 | D37: =SUM(D28:D36) -> -1182 | E37: =getformula(D37) -> <-- =SUM(D28:D36)
A40: Effect of exchange rate changes on cash and cash equivalents | B40: -35 | C40: 6 | D40: -12
A41: Increase in cash and cash equivalents | B41: =B37+B25+B20+B40 -> 16 | C41: =C37+C25+C20+C40 -> 110 | D41: =D37+D25+D20+D40 -> 79 | E41: =getformula(D41) -> <-- =D37+D25+D20+D40

Sheet Kellogg WACC
A1: COMPUTING THE WACC FOR KELLOGG
A2: Shares outstanding | B2: 357.3 | C2: <-- Million | D2: Kellogg debt and rD
A3: Share price, 30 December 2011 | B3: 50.57 | D3: Debt | E3: 2011 | F3: 20101
A4: Equity value, E | C4: =getformula(B4)&", million $" -> <-- , million $ | D4: Financial debt | E4: 6032 | F4: 5904
A5: Net debt financial debt, D | B5: =E6 -> 5572 | C5: <-- Million $ | D5: Cash | E5: 460 | F5: 444
A6: Tax rate, TC | C6: =getformula(B6) -> <-- | D6: Net financial debt | E6: 5572 | F6: 5460
A7: Cost of debt, rD | B7: =E9 -> 0 | C7: =getformula(B7) -> <-- =E9
A8: Expected market return, E(rM) | B8: 0.08 | D8: Net interest paid | E8: 233
A9: Risk free rate, rf | B9: 0.01 | D9: rD | F9: <-- =B15/AVERAGE(B13:C13)
A10: Equity beta, b | B10: 0.36
A12: WACC based on Gordon per-share dividends
A13: Current dividend/share | B13: ='Kellogg dividends'!E6 -> 0 | C13: =getformula(B13) -> <-- ='Kellogg dividends'!E6
A14: Growth rate | B14: ='Kellogg dividends'!E15 -> 0 | C14: =getformula(B14) -> <-- ='Kellogg dividends'!E15
A15: Cost of equity, rE | B15: =B13*(1+B14)/B3+B14 -> 0 | C15: =getformula(B15) -> <-- =B13*(1+B14)/B3+B14
A16: WACC | B16: =B15*$B$4/($B$4+$B$5)+B6*(1-$B$6)*$B$5/($B$4+$B$5) -> 0 | C16: =getformula(B16) -> <-- =B15*$B$4/($B$4+$B$5)+B6*(1-$B$6)*$B$5/($B$4+$B$5)
A18: WACC based on classic CAPM
A19: Cost of equity, rE | C19: =getformula(B19) -> <--
A20: WACC | C20: =getformula(B20) -> <--
A22: WACC based on tax-adjusted CAPM
A23: Cost of equity, rE | C23: =getformula(B23) -> <--
A24: WACC | C24: =getformula(B24) -> <--
A26: Estimated WACC? | C26: =getformula(B26) -> <--
C27: I think that the Gordon number is too large!

Sheet Kellogg dividends
A1: TEN YEARS OF KELLOGG DIVIDENDS
A3: Date | B3: Dividends | D3: Computation of Gordon rE
A4: 2001-11-28 | B4: 0.253 | D4: Current dividend
A5: 2002-02-28 | B5: 0.253 | D5: Quarterly | E5: =B44 -> 0.43
A6: 2002-05-29 | B6: 0.253 | D6: Annual | F6: =getformula(E6) -> <--
A7: 2002-08-28 | B7: 0.253 | D7: Current stock price | E7: 50.57
A8: 2002-11-26 | B8: 0.253
A9: 2003-02-27 | B9: 0.253 | D9: Dividend growth rate
A10: 2003-05-28 | B10: 0.253 | D10: 10-year growth
A11: 2003-08-27 | B11: 0.253 | D11: Quarterly | F11: =getformula(E11) -> <--
A12: 2003-11-25 | B12: 0.253 | D12: Annual | F12: =getformula(E12) -> <--
A13: 2004-03-02 | B13: 0.253 | D13: 5-year growth
A14: 2004-05-27 | B14: 0.253 | D14: Quarterly | F14: =getformula(E14) -> <--
A15: 2004-08-27 | B15: 0.253 | D15: Annual | F15: =getformula(E15) -> <--
A16: 2004-11-23 | B16: 0.253
A17: 2005-02-25 | B17: 0.253 | D17: Gordon rE
A18: 2005-05-27 | B18: 0.253 | D18: Based on 10-year growth | F18: =getformula(E18) -> <--
A19: 2005-08-30 | B19: 0.278 | D19: Based on 5-year growth | F19: =getformula(E19) -> <--
A20: 2005-11-29 | B20: 0.278
A21: 2006-02-27 | B21: 0.278
A22: 2006-05-30 | B22: 0.278
A23: 2006-08-30 | B23: 0.291
A24: 2006-11-29 | B24: 0.291
A25: 2007-02-27 | B25: 0.291
A26: 2007-05-30 | B26: 0.291
A27: 2007-08-29 | B27: 0.31
A28: 2007-11-29 | B28: 0.31
A29: 2008-02-29 | B29: 0.31
A30: 2008-05-29 | B30: 0.31
A31: 2008-08-28 | B31: 0.34
A32: 2008-12-01 | B32: 0.34
A33: 2009-02-27 | B33: 0.34
A34: 2009-05-28 | B34: 0.34
A35: 2009-08-28 | B35: 0.375
A36: 2009-11-30 | B36: 0.375
A37: 2010-02-26 | B37: 0.375
A38: 2010-05-27 | B38: 0.375
A39: 2010-08-30 | B39: 0.405
A40: 2010-11-29 | B40: 0.405
A41: 2011-02-25 | B41: 0.405
A42: 2011-05-27 | B42: 0.405
A43: 2011-08-30 | B43: 0.43
A44: 2011-11-29 | B44: 0.43
